bitfinex/quotes_SOLUSD_20241210
["timestamp","ask_amount","ask_price","bid_price","bid_amount"]
[1733851262327,21.17171885,208.97,208.8,0.5919884]
[1733851262820,1.17171885,208.97,208.8,1.30997924]
[1733851263132,21.17171885,208.97,208.8,0.5919884]
[1733851263521,1.17171885,208.97,208.8,0.5919884]
[1733851263712,1.17171885,208.97,208.8,40.44333226]
[1733851263905,1.17171885,208.97,208.8,1.31003428]
[1733851264229,1.17171885,208.97,208.8,0.5919884]
[1733851264426,20.0,208.92,208.8,0.5919884]
[1733851264598,20.0,208.9,208.8,0.5919884]
[1733851264803,0.74618693,208.89,208.8,0.5919884]
[1733851265004,1.17171885,208.89,208.8,0.5919884]
[1733851265406,21.17171885,208.89,208.8,0.5919884]
[1733851265709,20.0,208.83,208.68,0.71840643]
[1733851265927,0.74618693,208.82,208.65,0.71856494]
[1733851266226,1.17171885,208.82,208.65,0.71856494]
[1733851266427,1.17171885,208.82,208.61,30.0]
[1733851266428,15.0,208.81,208.62,0.71857366]
[1733851266599,20.0,208.78,208.59,0.5919884]
[1733851266801,20.74618693,208.77,208.59,0.5919884]
[1733851267033,20.74618693,208.77,208.65,30.0]
[1733851267034,20.42553192,208.77,208.65,30.0]
[1733851267213,20.42553192,208.77,208.66,0.71845454]
[1733851267411,0.42553192,208.77,208.66,0.71845454]
[1733851267614,0.42553192,208.77,208.67,39.25878798]
[1733851267841,0.42553192,208.77,208.72,0.12549]
[1733851268048,0.42553192,208.77,208.74,0.12549]
[1733851268336,0.42553192,208.77,208.68,23.776884]
[1733851268507,0.42553192,208.77,208.68,0.7184455]
[1733851268911,0.42553192,208.77,208.73,30.12549]
[1733851269111,0.42553192,208.77,208.74,0.71819449]
[1733851269703,0.42553192,208.77,208.75,23.776884]
[1733851269910,0.42553192,208.77,208.76,24.4951049]
[1733851270216,0.42553192,208.77,208.73,0.71822359]
[1733851270525,0.42553192,208.77,208.61,39.13329798]
[1733851270722,0.42553192,208.77,208.62,0.71857101]
[1733851270947,0.42553192,208.77,208.63,69.38427798]
[1733851271138,0.42553192,208.77,208.6,69.13329798]
[1733851271441,0.42553192,208.77,208.62,0.12549]
[1733851271626,0.42553192,208.77,208.63,0.71857497]
[1733851271826,0.42553192,208.77,208.66,39.25878798]
[1733851272030,0.42553192,208.77,208.67,0.71839745]
[1733851272543,0.42553192,208.77,208.7,0.12549]
[1733851272710,0.42553192,208.77,208.7,0.84378266]
[1733851272906,0.42553192,208.77,208.75,0.12549]
[1733851273115,2.3549,208.92,208.76,39.38427798]
[1733851273333,6.163,208.94,208.8,39.25878798]
[1733851273541,6.163,208.94,208.82,0.12549]
[1733851273722,2.3368,209.01,208.86,39.25878798]
[1733851273929,2.3368,209.01,208.89,39.13329798]
[1733851274242,6.163,209.03,208.9,39.85088732]
[1733851274553,6.163,209.03,208.9,30.71758934]
[1733851274765,6.163,209.03,208.91,39.38427798]
[1733851274926,2.81155476,209.05,208.93,69.25878798]
[1733851275132,2.81155476,209.05,208.94,0.71746153]
[1733851275343,2.81155476,209.05,208.95,23.776884]
[1733851275549,2.81155476,209.05,208.97,23.776884]
[1733851276863,2.81155476,209.05,208.93,0.71746095]
[1733851277070,20.74618693,209.04,208.84,69.13329798]
[1733851277227,35.74618693,209.04,208.85,0.71780292]
[1733851277558,35.74618693,209.04,208.82,39.13329798]
[1733851277559,20.0,209.0,208.82,39.13329798]
[1733851277721,0.74618693,209.04,208.8,0.71788395]
[1733851277722,20.0,208.98,208.8,0.71788395]
[1733851277922,0.74618693,208.97,208.8,0.71788395]
[1733851278154,0.74618693,208.97,208.79,0.71809377]
[1733851278327,20.0,208.96,208.79,0.71809377]
[1733851278529,0.74618693,208.95,208.8,39.25878798]
[1733851278722,20.0,208.96,208.81,0.71798415]
[1733851279029,0.74618693,209.02,208.86,69.13329798]
[1733851279238,0.74618693,209.04,208.89,23.776884]
[1733851279440,0.74618693,209.04,208.88,39.13329798]
[1733851279441,0.74618693,209.04,208.9,0.71777206]
[1733851279649,15.0,209.0,208.76,69.13329798]
[1733851279869,0.74618693,208.99,208.77,0.71800798]
[1733851280031,0.74618693,208.99,208.77,39.85130596]
[1733851280345,0.74618693,208.99,208.78,69.25878798]
[1733851280532,0.74618693,208.99,208.79,0.7180061]
[1733851280722,20.0,209.0,208.82,39.13329798]
[1733851280924,0.74618693,208.99,208.84,23.776884]
[1733851281134,0.74618693,209.02,208.87,39.25878798]
[1733851281360,0.74618693,209.02,208.89,23.776884]
[1733851281557,0.74618693,209.02,208.91,23.776884]
[1733851281858,0.74618693,209.02,208.86,23.776884]
[1733851282042,0.74618693,209.02,208.88,23.776884]
[1733851282447,20.0,209.0,208.88,23.776884]
[1733851282644,20.0,209.0,208.9,23.776884]
[1733851282876,6.163,209.03,208.92,23.776884]
[1733851283178,6.163,209.03,208.93,0.71766362]
[1733851283353,6.163,209.03,208.94,23.776884]
[1733851283551,6.163,209.03,208.96,23.776884]
[1733851284154,2.86359464,209.06,208.98,23.776884]
[1733851284346,2.86359464,209.06,208.94,23.776884]
[1733851284546,0.74618693,209.05,208.85,69.13329798]
[1733851284743,0.74618693,209.05,208.87,39.13329798]
[1733851284968,0.74618693,209.05,208.85,30.0]
[1733851284969,0.74618693,209.05,208.88,39.85099221]
[1733851285176,0.74618693,209.05,208.88,0.71769423]
[1733851285476,0.74618693,209.05,208.86,39.8511236]
[1733851285775,0.74618693,209.05,208.88,39.13329798]
[1733851285946,0.74618693,209.05,208.91,39.13329798]
[1733851286153,2.86359464,209.06,208.92,24.49450221]
[1733851286350,2.86359464,209.06,208.96,39.13329798]
[1733851286556,2.86359464,209.06,208.97,24.49432299]
[1733851287155,4.20334069,209.1,208.97,24.49432299]
[1733851287380,4.94952762,209.1,208.97,23.776884]
[1733851287564,4.94952762,209.1,208.87,39.13329798]
[1733851287565,15.0,209.09,208.87,39.13329798]
[1733851287767,0.74618693,209.08,208.86,39.85105502]
[1733851287965,38.776884,209.05,208.82,39.13329798]
[1733851288276,20.0,208.95,208.76,39.13329798]
[1733851288578,0.74618693,208.94,208.77,39.85139414]
[1733851288877,0.74618693,208.94,208.77,0.71809616]
[1733851288878,22.3274,208.93,208.77,0.71809616]
[1733851289071,0.74618693,208.92,208.77,0.71809616]
[1733851289652,0.74618693,208.92,208.76,39.8514393]
[1733851289854,0.74618693,208.92,208.76,0.71814132]
[1733851290060,20.0,208.91,208.76,0.71814132]
[1733851290293,0.74618693,208.9,208.76,0.71814132]
[1733851290463,20.0,208.85,208.71,0.71821285]
[1733851290669,0.74618693,208.84,208.81,7.542]
[1733851290864,0.74618693,208.84,208.69,0.71841208]
[1733851291191,0.74618693,208.84,208.66,0.71847696]
[1733851291682,20.0,208.84,208.72,39.13329798]
[1733851291865,0.74618693,208.92,208.78,39.13329798]
[1733851292066,2.3274,208.93,208.8,23.776884]
[1733851292285,2.89714818,208.91,208.82,23.776884]
[1733851292960,2.89714818,208.91,208.8,23.776884]
[1733851293458,2.89714818,208.91,208.81,0.71819982]
[1733851293665,2.89714818,208.91,208.82,23.776884]
[1733851294497,2.89714818,208.91,208.78,23.776884]
[1733851294663,2.89714818,208.91,208.77,0.71802627]
[1733851295059,0.74618693,208.9,208.74,0.71820717]
[1733851295255,0.74618693,208.9,208.7,39.8516267]
[1733851295458,20.0,208.88,208.71,39.13329798]
[1733851295693,0.74618693,208.87,208.73,39.13329798]
[1733851295897,2.89714818,208.91,208.78,39.13329798]
[1733851296059,2.89714818,208.91,208.79,0.71815121]
[1733851296255,2.89714818,208.91,208.8,0.12549]
[1733851296455,2.89714818,208.91,208.82,23.902374]
[1733851296761,2.89714818,208.91,208.84,23.776884]
[1733851297500,0.74618693,208.97,208.84,23.776884]
[1733851297705,2.61515959,208.97,208.84,23.776884]
[1733851297906,20.0,208.95,208.84,23.776884]
[1733851298125,2.84974397,208.92,208.79,23.776884]
[1733851298421,20.0,208.88,208.71,39.13329798]
[1733851298587,20.0,208.88,208.74,39.13329798]
[1733851298789,20.0,208.88,208.75,0.71817446]
[1733851298993,0.74618693,208.91,208.75,0.71817446]
[1733851299189,20.0,208.9,208.75,0.71817446]
[1733851299418,20.0,208.88,208.72,39.13329798]
[1733851299620,20.0,208.88,208.73,39.85153749]
[1733851299997,0.74618693,208.89,208.73,39.85153749]
[1733851300586,0.74618693,208.89,208.74,0.12549]
[1733851300822,0.74618693,208.89,208.76,23.902374]
[1733851301050,20.74618693,208.89,208.7,69.13329798]
[1733851301336,20.74618693,208.89,208.73,39.13329798]
[1733851301544,20.74618693,208.89,208.74,0.7182027]
[1733851302127,20.74618693,208.89,208.75,23.902374]
[1733851302539,2.84974397,208.92,208.8,23.776884]
[1733851302856,2.84974397,208.92,208.82,23.902374]
[1733851303020,0.74618693,208.97,208.84,23.776884]
[1733851303544,2.87214254,208.93,208.84,23.776884]
[1733851303947,8.46772919,208.98,208.86,23.776884]
[1733851304158,6.5469,208.98,208.88,23.776884]
[1733851304324,2.8060039,208.97,208.88,23.776884]
[1733851304517,6.5469,208.98,208.9,23.776884]
[1733851304732,6.0067,209.07,208.94,0.12549]
[1733851304939,2.83960727,209.05,208.95,23.776884]
[1733851305147,2.83960727,209.05,208.87,30.0]
[1733851305148,0.74618693,209.04,208.89,23.902374]
[1733851305326,0.74618693,209.04,208.83,39.13329798]
[1733851305650,0.74618693,209.04,208.81,0.7179285]
[1733851305834,20.74618693,209.04,208.84,39.13329798]
[1733851306150,0.74618693,209.04,208.87,39.13329798]
[1733851306346,23.776884,209.03,208.88,0.71770428]
[1733851306550,0.74618693,209.02,208.88,0.71770428]
[1733851306845,0.74618693,209.02,208.85,39.13329798]
[1733851306846,0.74618693,209.02,208.86,23.902374]
[1733851307261,23.776884,208.97,208.8,39.85121004]
[1733851307434,20.0,208.94,208.8,0.71791206]
[1733851307635,0.74618693,208.93,208.8,0.71791206]
[1733851307826,0.74618693,208.93,208.78,0.71811746]
[1733851308028,0.74618693,208.93,208.78,39.85141544]
[1733851308232,20.0,208.89,208.78,0.71811746]
[1733851308671,0.74618693,208.88,208.75,39.13329798]
[1733851308950,0.74618693,208.88,208.76,0.71817702]
[1733851309466,0.74618693,208.88,208.74,0.71821893]
[1733851310164,2.8550673,208.87,208.74,0.71821893]
[1733851310459,0.74618693,208.86,208.73,0.71830242]
[1733851310832,0.42553191,208.85,208.73,0.71830242]
[1733851311470,0.74618693,208.84,208.72,0.7183296]
[1733851311670,0.74618693,208.84,208.7,0.71843094]
[1733851311971,0.42553191,208.83,208.67,39.13329798]
[1733851312180,20.0,208.81,208.65,0.71846093]
[1733851312462,20.0,208.76,208.61,39.85189795]
[1733851312675,0.74618693,208.75,208.61,0.71859997]
[1733851312843,1.17171884,208.75,208.61,0.71859997]
[1733851313037,1.17171884,208.75,208.61,39.85189795]
[1733851313455,1.17171884,208.75,208.7,39.13329798]
[1733851313456,0.42553191,208.75,208.7,39.13329798]
[1733851313636,0.42553191,208.75,208.71,0.7183515]
[1733851313834,0.42553191,208.75,208.71,39.85164948]
[1733851314034,0.42553191,208.75,208.67,39.13329798]
[1733851314265,0.42553191,208.75,208.68,0.71840261]
[1733851314564,0.42553191,208.75,208.69,23.902374]
[1733851314771,0.42553191,208.75,208.63,39.13329798]
[1733851314937,0.42553191,208.75,208.59,0.5919884]
[1733851315137,20.42553191,208.75,208.59,0.5919884]
[1733851315438,20.0,208.73,208.59,0.5919884]
[1733851315637,0.74618693,208.72,208.59,0.5919884]
[1733851315864,1.17171884,208.72,208.59,0.5919884]
[1733851316101,20.0,208.68,208.59,0.5919884]
[1733851316306,22.8777206,208.68,208.59,0.5919884]
[1733851316473,0.42553191,208.67,208.59,0.5919884]
[1733851316997,1.17171884,208.67,208.59,0.5919884]
[1733851317177,0.42553191,208.67,208.59,0.5919884]
[1733851317366,1.17171884,208.67,208.59,0.5919884]
[1733851317570,0.42553191,208.67,208.59,0.5919884]
[1733851317770,20.0,208.62,208.53,0.71900925]
[1733851318092,20.0,208.62,208.42,30.0]
[1733851318093,1.17171884,208.61,208.42,30.0]
[1733851318266,1.17171884,208.61,208.42,69.52634104]
[1733851318462,1.17171884,208.61,208.42,39.52634104]
[1733851318695,20.0,208.57,208.41,0.71929969]
[1733851318862,0.74618693,208.56,208.41,312.71929969]
[1733851319074,1.17171884,208.56,208.41,312.0]
[1733851319277,1.17171884,208.56,208.38,0.5919884]
[1733851319595,20.0,208.52,208.38,0.5919884]
[1733851319839,20.74618693,208.51,208.38,0.5919884]
[1733851319967,21.17171884,208.51,208.38,0.5919884]
[1733851320584,20.0,208.41,208.19,30.0]
[1733851320885,1.17171884,208.4,208.24,39.52634104]
[1733851321097,1.17171884,208.4,208.25,0.71986302]
[1733851321612,20.0,208.36,208.17,39.52634104]
[1733851321773,0.74618693,208.35,208.23,39.52634104]
[1733851321972,0.42553191,208.35,208.24,0.72002507]
[1733851322326,4.07269585,208.35,208.24,0.72002507]
[1733851322666,0.42553191,208.35,208.29,39.52634104]
[1733851322872,0.42553191,208.35,208.31,39.52634104]
[1733851323105,0.42553191,208.35,208.32,0.71969197]
[1733851323791,0.42553191,208.35,208.32,40.24603301]
[1733851323993,0.42553191,208.35,208.33,23.776884]
[1733851324416,0.42553191,208.35,208.34,64.14840793]
[1733851324824,0.42553191,208.35,208.34,64.39938793]
[1733851324991,2.67032305,208.54,208.39,23.902374]
[1733851324992,0.74618693,208.54,208.39,23.902374]
[1733851325192,6.1582,208.55,208.44,39.52634104]
[1733851325387,6.1582,208.55,208.45,23.776884]
[1733851325626,2.88486317,208.54,208.45,23.776884]
[1733851325825,1.3035,208.65,208.45,23.776884]
[1733851325826,6.1582,208.65,208.47,23.776884]
[1733851326024,6.1582,208.65,208.46,40.24558807]
[1733851326025,0.74618693,208.64,208.49,63.30322504]
[1733851326324,6.1582,208.65,208.49,63.30322504]
[1733851326325,6.1582,208.65,208.51,23.776884]
[1733851326625,2.89350566,208.63,208.55,23.776884]
[1733851326827,2.89350566,208.63,208.52,0.71899897]
[1733851327116,2.89350566,208.63,208.51,23.776884]
[1733851327371,0.74618693,208.62,208.41,39.52634104]
[1733851327491,20.0,208.59,208.41,0.71939442]
[1733851327691,0.74618693,208.58,208.42,39.52634104]
[1733851327891,0.74618693,208.58,208.43,0.71928659]
[1733851328512,20.0,208.59,208.4,0.71932139]
[1733851328714,0.74618693,208.58,208.4,40.24566243]
[1733851328904,0.74618693,208.58,208.41,39.52634104]
[1733851329116,0.74618693,208.58,208.44,39.52634104]
[1733851329330,0.74618693,208.61,208.45,0.71924012]
[1733851329933,15.0,208.59,208.37,39.52634104]
[1733851330096,15.74618693,208.61,208.34,0.71957702]
[1733851330097,23.776884,208.56,208.34,0.71957702]
[1733851330294,20.74618693,208.55,208.35,39.52634104]
[1733851330499,0.74618693,208.55,208.39,39.52634104]
[1733851330723,20.0,208.59,208.4,0.71942124]
[1733851330724,0.74618693,208.58,208.4,0.71942124]
[1733851330927,20.74618693,208.58,208.44,0.12549]
[1733851331133,2.89110351,208.58,208.47,39.52634104]
[1733851331314,2.89110351,208.58,208.44,0.71919236]
[1733851331826,2.89110351,208.58,208.44,40.2455334]
[1733851332142,2.89110351,208.58,208.45,23.902374]
[1733851332301,2.89110351,208.58,208.45,63.42871504]
[1733851332506,2.89110351,208.58,208.47,39.52634104]
[1733851332705,0.74618693,208.71,208.51,39.52634104]
[1733851332937,0.74618693,208.64,208.52,23.776884]
[1733851333105,0.74618693,208.64,208.44,15.0]
[1733851333106,2.90578939,208.61,208.46,23.776884]
[1733851333316,0.74618693,208.6,208.43,0.71928946]
[1733851333507,0.74618693,208.6,208.39,40.24571996]
[1733851333709,0.74618693,208.6,208.4,0.12549]
[1733851333947,0.74618693,208.6,208.44,39.52634104]
[1733851334115,3.65197632,208.61,208.48,39.52634104]
[1733851334314,2.90578939,208.61,208.49,0.71911826]
[1733851334520,2.90578939,208.61,208.5,39.52634104]
[1733851334718,2.90578939,208.61,208.51,40.24536173]
[1733851334917,2.90578939,208.61,208.49,23.776884]
[1733851335221,0.74618693,208.6,208.47,23.776884]
[1733851335542,0.74618693,208.6,208.43,39.52634104]
[1733851335748,0.74618693,208.6,208.43,23.776884]
[1733851336244,20.74618693,208.6,208.42,39.52634104]
[1733851336406,20.74618693,208.6,208.42,0.71941125]
[1733851336613,20.74618693,208.6,208.42,40.24575229]
[1733851336834,0.74618693,208.6,208.42,40.24575229]
[1733851337133,23.776884,208.59,208.42,0.71941125]
[1733851337358,20.0,208.55,208.36,39.52634104]
[1733851337543,20.74618693,208.54,208.34,39.52634104]
[1733851337835,20.74618693,208.54,208.36,39.52634104]
[1733851338147,0.74618693,208.54,208.37,0.7195308]
[1733851338650,0.74618693,208.55,208.37,0.7195308]
[1733851339036,2.94207216,208.5,208.37,0.7195308]
[1733851339526,0.74618693,208.49,208.37,0.7195308]
[1733851339921,2.94207216,208.5,208.37,0.7195308]
[1733851340235,0.74618693,208.49,208.37,0.7195308]
[1733851340922,2.94207216,208.5,208.38,23.776884]
[1733851341125,2.94207216,208.5,208.37,0.7195308]
[1733851341126,0.74618693,208.49,208.37,0.7195308]
[1733851341429,20.0,208.45,208.29,39.52634104]
[1733851341617,0.74618693,208.44,208.33,39.52634104]
[1733851341821,20.0,208.45,208.34,0.71970791]
[1733851342022,0.74618693,208.44,208.34,0.71970791]
[1733851342267,0.74618693,208.44,208.29,0.71972786]
[1733851342422,6.0703,208.56,208.43,39.52634104]
[1733851342619,2.90578939,208.61,208.4,39.52634104]
[1733851342620,2.90578939,208.61,208.5,39.52634104]
[1733851343051,2.90578939,208.61,208.52,39.52634104]
[1733851343252,0.74618693,208.63,208.53,0.71906877]
[1733851343459,2.87263781,208.63,208.56,39.52634104]
[1733851343667,6.0703,208.64,208.53,0.71906877]
[1733851343668,6.0703,208.64,208.53,0.71890946]
[1733851343986,0.74618693,208.62,208.47,23.776884]
[1733851344262,0.74618693,208.62,208.46,23.776884]
[1733851344263,20.0,208.61,208.46,23.776884]
[1733851344433,0.74618693,208.6,208.42,39.52634104]
[1733851344641,0.74618693,208.6,208.43,23.776884]
[1733851344855,0.74618693,208.6,208.4,39.52634104]
[1733851345426,23.776884,208.59,208.4,39.52634104]
[1733851345655,20.0,208.56,208.4,39.52634104]
[1733851345855,0.74618693,208.55,208.4,351.52634104]
[1733851346166,0.74618693,208.55,208.4,39.52634104]
[1733851346368,0.74618693,208.55,208.34,31.596]
[1733851346369,0.74618693,208.55,208.38,0.71950014]
[1733851346671,6.0703,208.5,208.35,39.52634104]
[1733851346832,6.0703,208.5,208.4,39.52634104]
[1733851347028,0.74618693,208.55,208.36,0.87760195]
[1733851347029,0.74618693,208.55,208.42,39.52634104]
[1733851347237,6.0703,208.58,208.47,39.52634104]
[1733851347435,0.74618693,208.57,208.47,39.52634104]
[1733851348062,0.74618693,208.57,208.41,39.52634104]
[1733851348358,15.74618693,208.57,208.36,0.87760195]
[1733851348570,20.0,208.52,208.36,0.87760195]
[1733851348735,0.74618693,208.51,208.36,39.52634104]
[1733851348935,0.74618693,208.51,208.39,39.52634104]
[1733851349131,20.0,208.55,208.4,39.52634104]
[1733851349358,0.74618693,208.54,208.42,39.52634104]
[1733851349662,0.74618693,208.57,208.42,39.52634104]
[1733851349896,0.74618693,208.57,208.43,24.49626246]
[1733851350058,0.74618693,208.57,208.42,39.52634104]
[1733851350257,23.776884,208.56,208.38,39.52634104]
[1733851350458,0.74618693,208.55,208.36,39.52634104]
[1733851350661,20.74618693,208.55,208.44,39.52634104]
[1733851350852,8.94452802,208.58,208.5,39.52634104]
[1733851351055,6.0703,208.58,208.51,40.24547044]
[1733851351362,2.87470178,208.62,208.51,39.52634104]
[1733851351562,0.74618693,208.61,208.47,39.52634104]
[1733851352076,0.74618693,208.61,208.44,39.52634104]
[1733851352279,0.74618693,208.61,208.45,40.24567602]
[1733851352564,0.74618693,208.61,208.45,39.52634104]
[1733851353683,0.74618693,208.61,208.46,0.71928892]
[1733851354075,0.74618693,208.61,208.48,23.776884]
[1733851354279,2.87470178,208.62,208.51,39.52634104]
[1733851354481,6.2677,208.67,208.55,39.52634104]
[1733851354654,6.2677,208.67,208.57,39.52634104]
[1733851354855,0.74618693,208.76,208.6,0.12549]
[1733851354856,1.92016401,208.71,208.6,0.12549]
[1733851355093,0.74618693,208.78,208.62,39.52634104]
[1733851355292,0.8723476,208.77,208.58,39.52634104]
[1733851355459,0.74618693,208.76,208.57,0.71887104]
[1733851355862,0.74618693,208.76,208.56,39.52634104]
[1733851356064,0.74618693,208.76,208.53,23.902374]
[1733851356264,0.74618693,208.76,208.55,23.776884]
[1733851356484,0.74618693,208.76,208.56,39.52634104]
[1733851356867,35.0,208.74,208.54,39.52634104]
[1733851357065,0.74618693,208.73,208.51,39.52634104]
[1733851357294,20.74618693,208.73,208.53,39.52634104]
[1733851357462,21.61853453,208.73,208.53,39.52634104]
[1733851357655,0.87205052,208.72,208.54,24.49587477]
[1733851357990,0.87205052,208.72,208.53,39.52634104]
[1733851357991,0.74618693,208.71,208.53,39.52634104]
[1733851358162,20.0,208.66,208.48,39.52634104]
[1733851358359,0.74618693,208.65,208.5,39.52634104]
[1733851358787,0.74618693,208.65,208.48,39.52634104]
[1733851358788,20.74618693,208.65,208.48,39.52634104]
[1733851359089,20.0,208.61,208.42,39.52634104]
[1733851359385,20.0,208.61,208.41,0.71924704]
[1733851359386,6.2677,208.56,208.4,39.52634104]
[1733851359591,0.74618693,208.55,208.4,39.52634104]
[1733851359796,0.74618693,208.55,208.34,30.0]
[1733851359797,20.0,208.53,208.34,39.52634104]
[1733851359965,0.74618693,208.52,208.38,39.52634104]
[1733851360889,0.74618693,208.52,208.31,12.0009]
[1733851360890,38.776884,208.51,208.25,30.0]
[1733851361193,20.0,208.48,208.29,39.52634104]
[1733851361380,0.74618693,208.47,208.35,39.52634104]
[1733851361688,0.74618693,208.47,208.33,39.52634104]
[1733851361892,20.0,208.47,208.3,0.71977899]
[1733851362187,0.74618693,208.46,208.32,39.52634104]
[1733851362434,0.74618693,208.46,208.34,39.52634104]
[1733851362561,0.74618693,208.46,208.36,39.52634104]
[1733851362763,0.74618693,208.52,208.38,39.52634104]
[1733851363295,0.74618693,208.52,208.35,39.52634104]
[1733851363463,0.74618693,208.52,208.34,0.71960467]
[1733851363464,0.74618693,208.52,208.33,39.52634104]
[1733851363670,0.74618693,208.52,208.34,23.776884]
[1733851364061,0.74618693,208.52,208.35,40.24599097]
[1733851364267,0.74618693,208.52,208.33,39.52634104]
[1733851364465,23.776884,208.52,208.34,0.71970394]
[1733851364885,1.88451657,208.53,208.38,23.776884]
[1733851365085,6.2677,208.56,208.37,40.24583224]
[1733851365315,8.15450917,208.56,208.4,23.776884]
[1733851365789,8.15450917,208.56,208.4,24.49630262]
[1733851366187,8.15450917,208.56,208.37,39.52634104]
[1733851366188,8.15450917,208.56,208.38,20.0]
[1733851366397,8.15450917,208.56,208.35,39.52634104]
[1733851366598,20.0,208.53,208.36,0.71965383]
[1733851367501,2.94437583,208.49,208.35,39.52634104]
[1733851367686,2.94437583,208.49,208.35,40.24597551]
[1733851367892,2.94437583,208.49,208.32,0.71961374]
[1733851368076,20.0,208.45,208.28,51.52894104]
[1733851368272,20.0,208.45,208.29,0.71985626]
[1733851368502,2.94437583,208.49,208.32,39.52634104]
[1733851368699,2.94437583,208.49,208.33,0.71963319]
[1733851369283,2.94437583,208.49,208.34,23.776884]
[1733851370015,2.94437583,208.49,208.33,0.71963319]
[1733851370176,20.0,208.45,208.28,39.52634104]
[1733851370383,2.94437583,208.49,208.32,39.52634104]
[1733851370590,2.94437583,208.49,208.33,0.71967502]
[1733851370811,0.42553192,208.48,208.33,0.71967502]
[1733851371216,0.42553192,208.48,208.36,39.52634104]
[1733851371515,0.42553192,208.48,208.39,39.52634104]
[1733851371680,2.38235307,208.48,208.29,51.52874104]
[1733851371882,2.38235307,208.48,208.3,0.71979699]
[1733851372098,2.38235307,208.48,208.28,39.52634104]
[1733851372304,2.38235307,208.48,208.3,39.52634104]
[1733851372931,2.38235307,208.48,208.31,0.71975891]
[1733851373141,2.38235307,208.48,208.32,39.52634104]
[1733851373329,2.38235307,208.48,208.34,39.52634104]
[1733851373529,2.38235307,208.48,208.35,0.71956907]
[1733851373745,2.38235307,208.48,208.34,39.52634104]
[1733851373924,2.38235307,208.48,208.33,24.49654409]
[1733851374953,2.38235307,208.48,208.33,0.71966009]
[1733851376301,20.0,208.46,208.28,39.52634104]
[1733851376451,20.0,208.46,208.27,0.71987024]
[1733851376777,0.42553192,208.45,208.32,39.52634104]
[1733851377089,0.42553192,208.45,208.33,0.71974194]
[1733851378685,0.42553192,208.45,208.34,39.52634104]
[1733851378851,0.42553192,208.45,208.33,0.71974194]
[1733851379251,0.42553192,208.45,208.34,63.30322504]
[1733851379480,0.42553192,208.45,208.37,23.776884]
[1733851379788,0.42553192,208.45,208.4,39.52634104]
[1733851380000,0.42553192,208.45,208.4,40.24579506]
[1733851380291,0.42553192,208.45,208.43,20.0]
[1733851380480,0.42553192,208.45,208.44,84.02247639]
[1733851380788,0.42553192,208.45,208.4,39.52634104]
[1733851380991,0.42553192,208.45,208.42,63.30322504]
[1733851381292,0.17795894,208.45,208.44,23.776884]
[1733851381458,0.17795894,208.45,208.43,0.71935268]
[1733851382086,0.17795894,208.45,208.43,0.71939885]
[1733851382255,0.17795894,208.45,208.44,63.30322504]
[1733851382454,0.17795894,208.45,208.44,23.776884]
[1733851382881,0.17795894,208.45,208.44,63.42871504]
[1733851383056,5.894e-05,208.45,208.44,63.55420504]
[1733851383256,6.1518,208.64,208.47,23.776884]
[1733851383459,6.1518,208.64,208.49,43.776884]
[1733851383661,6.1518,208.64,208.48,40.24538495]
[1733851383662,2.84605677,208.59,208.48,40.24538495]
[1733851383876,2.84605677,208.59,208.37,41.9976]
[1733851384076,2.84605677,208.59,208.39,41.08744104]
[1733851384288,22.84605677,208.59,208.41,39.52634104]
[1733851384580,22.84605677,208.59,208.44,39.52634104]
[1733851384755,2.84605677,208.59,208.42,0.71930002]
[1733851384954,2.84605677,208.59,208.43,39.52634104]
[1733851385381,2.84605677,208.59,208.44,40.24562902]
[1733851385864,2.84605677,208.59,208.42,39.52634104]
[1733851386062,2.84605677,208.59,208.43,23.776884]
[1733851386254,2.84605677,208.59,208.45,23.776884]
[1733851386468,2.84605677,208.59,208.44,0.71934115]
[1733851386674,2.84605677,208.59,208.45,39.52634104]
[1733851386873,2.84605677,208.59,208.44,40.24568219]
[1733851387161,2.84605677,208.59,208.47,39.52634104]
[1733851387365,2.84605677,208.59,208.48,0.71915385]
[1733851387561,8.0950755,208.64,208.51,39.52634104]
[1733851387790,8.0950755,208.64,208.55,39.52634104]
[1733851387989,8.0950755,208.64,208.57,39.52634104]
[1733851388286,8.0950755,208.64,208.55,0.71882475]
[1733851388461,8.0950755,208.64,208.49,30.12549]
[1733851388462,8.0950755,208.64,208.46,39.52634104]
[1733851388669,8.0950755,208.64,208.44,39.52634104]
[1733851389079,20.0,208.61,208.43,40.24560204]
[1733851389284,20.0,208.59,208.4,0.71933728]
[1733851389496,20.0,208.59,208.39,1.5611]
[1733851389497,20.0,208.58,208.39,1.5611]
[1733851389899,20.0,208.58,208.39,41.08744104]